Cogmind - Beta 14 @@@ ROGUE MODE // 2024.09.10 @ 15:26:48 Player: Helstads_dog Result: Self-destructed Performance ------------- Evolutions (2) 1000 Regions Visited (6) 1200 Robots Destroyed (100) 500 Value Destroyed (3119) 3119 Prototype IDs (30) 600 Alien Tech Used (0) 0 Bonus (390) 390 TOTAL SCORE: 6809 Bonus ------- High Alert Combat Kills 96 Aligned with FarCom 300 Friendly Fire -6 Cogmind --------- Core Integrity 122/550 Matter 282/300 Energy 265/265 System Corruption 0% Temperature Cool (0) Movement Rolling (165) Ox5 Location -8/Materials Parts ------- > --- POWER (1) -------- Improved Ion Engine > --- PROPULSION (2) --- Light Treads Armored Wheel > --- UTILITY (4) ------ High-capacity Storage Unit Core Shielding > --- WEAPON (4) ------- Pulse Rifle Heavy Laser Minigun Minigun > --- INVENTORY (20) --- Light Nuclear Core Reinforced Deuterium Engine Armored Treads Armored Treads Wheel Improved Heat Sink Cooling System Signal Interpreter Improved Signal Interpreter Beam Rifle Beam Rifle Beam Rifle Particle Gun Particle Gun Particle Gun Autogun Rocket Launcher Field Lobotomy Kit (4) Plasma Cutter Peak State ------------ > --- POWER ------------ Improved Ion Engine > --- PROPULSION ------- Light Treads Wheel > --- UTILITY ---------- Advanced Heat Sink High-capacity Storage Unit Improved Terrain Scanner Medium Armor Plating > --- WEAPON ----------- Heavy Laser Minigun Minigun Minigun > --- INVENTORY -------- Improved Ion Engine Light Treads Wheel Armored Wheel Advanced Heat Sink Cooling System Signal Interpreter Improved Signal Interpreter Beam Rifle Beam Rifle Beam Rifle Particle Gun Autogun Minigun Minigun Minigun Minigun Rocket Launcher Field Lobotomy Kit Plasma Cutter [Rating: 33] Favorites ----------- Power Improved Ion Engine Engine Improved Ion Engine Power Core Light Nuclear Core Propulsion Light Treads Treads Light Treads Leg Aluminum Leg Wheel Wheel Utility High-capacity Storage Unit Device Advanced Heat Sink Storage High-capacity Storage Unit Processor Improved Targeting Computer Protection Hardened Light Armor Plating Weapon Light Assault Rifle Energy Gun Beam Rifle Ballistic Gun Light Assault Rifle Launcher Rocket Launcher Special Weapon Field Lobotomy Kit Build | -11 -10 -9 -9 -9 -8 -8 ------- Run | Yrd Mat Mat Min Exi Min Mat Slots Evolved 4 | . . 2 . . . 2 Power . | . . . . . . . Propulsion . | . . . . . . . Utility 2 | . . . . . . 2 Weapon 2 | . . 2 . . . . Parts Attached 93 | . 15 32 12 5 9 20 Power 11 | . 2 3 3 . . 3 Engine 10 | . 2 3 3 . . 2 Core 1 | . . . . . . 1 Reactor . | . . . . . . . Propulsion 14 | . 2 7 2 1 . 2 Treads 7 | . 1 3 1 1 . 1 Leg . | . . . . . . . Wheel 7 | . 1 4 1 . . 1 Hover . | . . . . . . . Flight . | . . . . . . . Utility 21 | . 3 7 3 . 1 7 Device 9 | . . 4 1 . 1 3 Storage 2 | . 2 . . . . . Processor 2 | . 1 1 . . . . Hackware . | . . . . . . . Protection 8 | . . 2 2 . . 4 Artifact . | . . . . . . . Weapon 47 | . 8 15 4 4 8 8 Energy Gun 18 | . 3 10 2 1 1 1 Energy Cannon . | . . . . . . . Ballistic Gun 22 | . 3 3 2 3 4 7 Ballistic Cannon . | . . . . . . . Launcher 6 | . 2 2 . . 2 . Special Weapon 1 | . . . . . 1 . Impact Weapon . | . . . . . . . Slashing Weapon . | . . . . . . . Piercing Weapon . | . . . . . . . Special Melee Weapon . | . . . . . . . Unidentified Prototypes 3 | . . 3 . . . . Parts Lost 24 | . 3 4 7 . . 10 Power 6 | . 2 1 1 . . 2 Propulsion 6 | . . 2 2 . . 2 Utility 5 | . . . 2 . . 3 Weapon 7 | . 1 1 2 . . 3 Highest Loss Streak 10 | . 1 1 5 . . 10 To Critical Strikes . | . . . . . . . Average Slot Usage (%) 95 | . 98 99 99 59 100 89 Engine 11 | . 13 10 11 11 11 7 Treads 9 | . 1 11 10 10 11 8 Leg 3 | . 24 . . . . . Wheel 9 | . 1 11 10 11 11 8 Device 4 | . . 5 1 . 9 7 Storage 11 | . 14 11 11 11 11 9 Processor 2 | . 13 1 . . . . Protection 5 | . . 4 9 11 1 12 Energy Gun 13 | . 13 20 13 1 11 9 Ballistic Gun 23 | . 13 23 30 3 32 25 Peak Build Rating 33 | . 11 20 22 20 30 33 Average Rating 17 | . 9 15 19 11 23 27 On Entrance 15 | 6 6 10 20 19 20 24 Naked Turns . | . . . . . . . Heaviest Build 73 | 11 49 65 65 62 64 73 Greatest Support 20 | 20 20 12 12 10 10 12 Greatest Overweight (x) 18 | . 4 6 6 6 6 18 Average Overweight (x) 4 | . 1 5 5 5 5 6 Largest Inventory Capacity 20 | . 20 20 20 20 20 20 Average Capacity 19 | . 15 20 20 20 20 20 Most Carried 20 | . 15 20 20 20 20 20 Average Carried 17 | . 11 18 18 19 19 17 Final Capacity 20 | 8 20 20 20 20 20 20 Final Carried 20 | 6 12 19 20 20 20 19 Class Distribution -------------------- 27% | Scavenger-Skirmisher 22% | Mutant 21% | Tank 11% | Gunner 10% | Scavenger-Tank 7% | Scavenger-Gunner Dominant Class ---------------- Mutant | -10/Materials Tank | -9/Materials Tank | -9/Mines Mutant | -9/Exiles Scavenger-Skirmisher | -8/Mines Scavenger-Tank | -8/Materials Resources | -11 -10 -9 -9 -9 -8 -8 ----------- Run | Yrd Mat Mat Min Exi Min Mat Matter Collected 2142 | 200 203 594 314 . 312 519 Remotely . | . . . . . . . Salvage Created 3637 | . 646 1569 297 . 288 837 Parts 220 | . 46 96 17 . 16 45 Haulers Intercepted 1 | . 1 . . . . . Recyclers Shooed 2 | . 2 . . . . . Parts Field Recycled . | . . . . . . . Retrieved Matter . | . . . . . . . Parts Self-Destructed . | . . . . . . . Prevented . | . . . . . . . Kills | -11 -10 -9 -9 -9 -8 -8 ------- Run | Yrd Mat Mat Min Exi Min Mat Combat Hostiles Destroyed 94 | . 17 38 16 . 8 15 Guns 81 | . 14 33 16 . 3 15 AOE 13 | . 3 5 . . 5 . Classes Destroyed 13 | . 6 4 2 . . 1 Builder 2 | . . 1 . . . 1 Hauler 1 | . 1 . . . . . Recycler 1 | . 1 . . . . . Operator 2 | . 1 1 . . . . Watcher 6 | . 1 4 . . . 1 Swarmer 23 | . 6 8 7 . 2 . Grunt 48 | . 11 18 . . 6 13 Brawler 1 | . . 1 . . . . Duelist 2 | . . 1 . . . 1 Sentry 12 | . . 10 2 . . . Demolisher 1 | . . . 1 . . . Heavy 1 | . . . . . . 1 Assembled 6 | . . . 6 . . . Best Kill Streak 11 | . 6 8 4 . 3 11 Combat Bots Only 10 | . 6 8 4 . 3 10 Max Kills in Single Turn 5 | . 5 3 2 . 2 2 Gunslinging 1 | . . 1 1 . . 1 Exploded 3 | . 3 3 . . 2 . Melee . | . . . . . . . Uniques/NPCs Destroyed . | . . . . . . . Combat | -11 -10 -9 -9 -9 -8 -8 -------- Run | Yrd Mat Mat Min Exi Min Mat Hostile Shots Fired 339 | . 61 98 60 . 18 102 Missed 88 | . 14 33 10 . 9 22 Damage Taken 4380 | . 491 783 1228 . 158 1720 Core 851 | . 96 124 185 . 18 428 Absorbed by Shields . | . . . . . . . Core Remaining (%) 59 | 100 61 . . . 18 . Volleys Fired 193 | . 50 69 28 . 10 36 Largest 4 | . 2 4 4 . 4 4 Hottest 182 | . 65 166 158 . 122 182 Shots Fired 627 | . 97 254 112 . 24 140 Gun 614 | . 94 250 112 . 18 140 Cannon . | . . . . . . . Launcher 12 | . 3 4 . . 5 . Special 1 | . . . . . 1 . Kinetic 354 | . 47 119 71 . 14 103 Thermal 202 | . . 120 41 . 4 37 Explosive 12 | . 3 4 . . 5 . Electromagnetic 58 | . 47 11 . . . . Robot Hit Streak 15 | . 11 15 6 . 4 15 Robot Miss Streak 8 | . 3 4 8 . 3 6 Penetration Max . | . . . . . . . Secondary Targets 16 | . 2 6 3 . 1 4 Max Gunslinging Chain 1 | . 1 1 1 . 1 1 Shots Hit Robots 372 | . 55 146 57 . 12 102 Core Hits 177 | . 30 73 24 . 14 36 Critical Kills 2 | . . 1 . . 1 . Critical Parts Destroyed 1 | . 1 . . . . . Critical Strikes 12 | . 1 6 3 . 1 1 Burn 8 | . . 4 3 . . 1 Destroy 3 | . 1 1 . . 1 . Corrupt 1 | . . 1 . . . . Melee Attacks . | . . . . . . . Impact . | . . . . . . . Slashing . | . . . . . . . Piercing . | . . . . . . . Sneak Attacks . | . . . . . . . Combat Hostiles . | . . . . . . . Follow-up Attacks . | . . . . . . . Damage Inflicted 6378 | . 1089 2161 817 . 477 1834 Guns 5432 | . 734 1912 817 . 135 1834 Cannons . | . . . . . . . Explosions 946 | . 355 249 . . 342 . Melee . | . . . . . . . Ramming . | . . . . . . . Kinetic 2921 | . 217 732 547 . 121 1304 Thermal 1941 | . 41 1086 270 . 14 530 Explosive 905 | . 314 249 . . 342 . Electromagnetic 611 | . 517 94 . . . . Impact . | . . . . . . . Slashing . | . . . . . . . Piercing . | . . . . . . . Highest Corruption 5 | . . . 5 5 5 . Average Corruption 5 | . . . 5 5 5 . Corruption Purged . | . . . . . . . Corruption Blocked . | . . . . . . . Effects 58 | . . . 11 12 35 . Message Errors 16 | . . . 3 3 10 . Matter Fused 14 | . . . 3 4 7 . Heat Flow Errors 6 | . . . 1 . 5 . Energy Discharges 4 | . . . . 1 3 . Data Loss (minor) 10 | . . . 2 1 7 . Data Loss (major) 3 | . . . . 2 1 . Misfires 3 | . . . 1 . 2 . Alerts 1 | . . . . 1 . . Weapon Failures 1 | . . . 1 . . . Overload Shots . | . . . . . . . Overflow Damage 16 | . . 16 . . . . Projectiles . | . . . . . . . Explosions 16 | . . 16 . . . . Melee . | . . . . . . . Knockbacks . | . . . . . . . Impact . | . . . . . . . Kinetic . | . . . . . . . Secondary . | . . . . . . . Self-Inflicted Damage . | . . . . . . . Shots . | . . . . . . . Rammed . | . . . . . . . Targets Rammed . | . . . . . . . Kicked . | . . . . . . . Crushed . | . . . . . . . Highest Temperature 482 | . 128 303 333 . 322 482 Average Temperature 106 | . 43 105 128 . 141 121 Received Heat Transfer 1276 | . 207 300 67 . 72 630 Effects 5 | . . 3 1 . . 1 Shutdowns 1 | . . . . . . 1 Energy Bleed 1 | . . . 1 . . . Interference 3 | . . 3 . . . . Siege Activations . | . . . . . . . Robots Corrupted . | . . . . . . . Combat Hostiles . | . . . . . . . Parts Fried 1 | . 1 . . . . . Impact Corruptions . | . . . . . . . Robots Melted . | . . . . . . . Combat Hostiles . | . . . . . . . Parts Melted 8 | . . 8 . . . . Heat Transferred 5127 | . 50 3042 888 . 37 1110 Parts Sabotaged . | . . . . . . . Parts Stolen . | . . . . . . . Parts Stripped . | . . . . . . . Power Chain Reactions 1 | . 1 . . . . . Alert | -11 -10 -9 -9 -9 -8 -8 ------- Run | Yrd Mat Mat Min Exi Min Mat Peak Influence 490 | . 337 490 325 . 221 280 Initial 165 | . . 101 165 . . . Average 198 | . 181 366 145 . 48 100 Maximum Alert Level 2 | . 1 2 1 . 1 1 Low Security (%) 53 | . 51 5 76 . 92 89 Level 1 35 | . 48 60 23 . 7 10 Level 2 11 | . . 33 . . . . Level 3 . | . . . . . . . Level 4 . | . . . . . . . Level 5 . | . . . . . . . High Security . | . . . . . . . Max Security . | . . . . . . . Squads Dispatched 8 | . 3 3 . . . 2 Investigation 6 | . 2 3 . . . 1 Extermination . | . . . . . . . Reinforcement 2 | . 1 . . . . 1 Assault . | . . . . . . . Garrison . | . . . . . . . Intercept . | . . . . . . . Searches Triggered . | . . . . . . . Construction Impeded . | . . . . . . . Haulers Reinforced . | . . . . . . . Active Scanning Responses . | . . . . . . . Cargo Convoy Interrupts . | . . . . . . . Stealth | -11 -10 -9 -9 -9 -8 -8 --------- Run | Yrd Mat Mat Min Exi Min Mat Distress Signals 6 | . . 5 . . . 1 Communications Jammed . | . . . . . . . Distress Signals . | . . . . . . . Times Spotted 120 | . 26 53 16 . 7 18 Peak Tracking Total 6 | . 5 6 3 . 3 6 Tactical Retreats 3 | . 1 1 . . . 1 Traps | -11 -10 -9 -9 -9 -8 -8 ------- Run | Yrd Mat Mat Min Exi Min Mat Traps Triggered 2 | . . 1 . . . 1 Indirectly . | . . . . . . . Trap Hack Attempts . | . . . . . . . Triggered . | . . . . . . . Disarmed . | . . . . . . . Reprogrammed . | . . . . . . . Reused . | . . . . . . . Traps Extracted . | . . . . . . . Installed . | . . . . . . . Triggered . | . . . . . . . Machines | -11 -10 -9 -9 -9 -8 -8 ---------- Run | Yrd Mat Mat Min Exi Min Mat Machines Disabled 2 | . . 1 . . 1 . Max in Single Turn 1 | . . 1 . . 1 . Machines Repaired . | . . . . . . . Machines Dismantled . | . . . . . . . Machines Sabotaged . | . . . . . . . Overloaded Fab Kills . | . . . . . . . Hacking | -11 -10 -9 -9 -9 -8 -8 --------- Run | Yrd Mat Mat Min Exi Min Mat Machines Accessed 32 | . 9 15 . 5 1 2 Terminals 22 | . 7 12 . . 1 2 Fabricators . | . . . . . . . Repair Stations . | . . . . . . . Recycling Units 4 | . 2 2 . . . . Scanalyzers 1 | . . 1 . . . . Garrison Access . | . . . . . . . Total Hacks 120 | . 20 44 . 50 3 3 Successful 83 | . 10 21 . 50 1 1 Failed 36 | . 9 23 . . 2 2 Catastrophic 10 | . 2 6 . . 2 . Database Lockouts 1 | . 1 . . . . . Manual 35 | . 8 21 . 1 3 2 Terminals 55 | . 16 33 . . 3 3 Fabricators . | . . . . . . . Repair Stations . | . . . . . . . Recycling Units 6 | . 4 2 . . . . Scanalyzers 9 | . . 9 . . . . Garrison Access . | . . . . . . . Terminal Hacks 64 | . 5 7 . 50 1 1 Record 49 | . . . . 49 . . Robot Analysis 4 | . 1 2 . . 1 . Prototype ID Bank 3 | . 2 1 . . . . Branch Access Points 1 | . 1 . . . . . Alert Level 2 | . . 1 . . . 1 Unreport Threat 2 | . . 2 . . . . Locate Traps 2 | . 1 1 . . . . Derelict Proto ID Bank 1 | . . . . 1 . . Fabricator Hacks . | . . . . . . . Repair Station Hacks . | . . . . . . . Recycling Unit Hacks 3 | . 2 1 . . . . Report Inventory 3 | . 2 1 . . . . Scanalyzer 9 | . . 9 . . . . Insert Component 4 | . . 4 . . . . Analyze 5 | . . 5 . . . . Garrison Access Hacks . | . . . . . . . Unauthorized Hacks 7 | . 3 4 . . . . Terminals 4 | . 1 3 . . . . Assimilate 1 | . . 1 . . . . Botnet 3 | . 1 2 . . . . Fabricators . | . . . . . . . Repair Stations . | . . . . . . . Recycling Units 3 | . 2 1 . . . . Tunnel 3 | . 2 1 . . . . Scanalyzers . | . . . . . . . Garrison Access . | . . . . . . . Data Cores Recovered 2 | . 1 1 . . . . Used . | . . . . . . . Hacking Detections 24 | . 8 14 . . 1 1 Full Trace Events 2 | . . 2 . . . . Feedback Events . | . . . . . . . Feedback Blocked . | . . . . . . . Robot Schematics Acquired . | . . . . . . . Robots Built . | . . . . . . . Authchips . | . . . . . . . Time . | . . . . . . . Total Robot Build Rating . | . . . . . . . Part Schematics Acquired 4 | . . 4 . . . . Parts Built . | . . . . . . . Authchips . | . . . . . . . Time . | . . . . . . . Total Part Build Rating . | . . . . . . . Parts Repaired . | . . . . . . . Time . | . . . . . . . Parts Recycled . | . . . . . . . Recycled Matter . | . . . . . . . Retrieved Matter . | . . . . . . . Retrieved Components . | . . . . . . . Parts Scanalyzed 4 | . . 4 . . . . Part Schematics Acquired 4 | . . 4 . . . . Parts Damaged . | . . . . . . . Bothacking | -11 -10 -9 -9 -9 -8 -8 ------------ Run | Yrd Mat Mat Min Exi Min Mat Used RIF Installer . | . . . . . . . Robots Hacked . | . . . . . . . Non-combat . | . . . . . . . Combat . | . . . . . . . Robot Hacks Applied . | . . . . . . . Relay Couplers Released . | . . . . . . . Fabnet Peak Effective % . | . . . . . . . Robots Rewired . | . . . . . . . Allies Hacked . | . . . . . . . Hacks Repelled . | . . . . . . . Allies | -11 -10 -9 -9 -9 -8 -8 -------- Run | Yrd Mat Mat Min Exi Min Mat Total Allies 1 | . . . . . 1 . Largest Group 1 | . . . . . 1 1 Highest-Rated Group 21 | . . . . . 21 21 Highest-Rated Ally 21 | . . . . . 21 21 Total Orders . | . . . . . . . Ally Attacks 3 | . . . . . . 3 Total Damage 74 | . . . . . . 74 Kills . | . . . . . . . Allies Corrupted . | . . . . . . . Allies Melted . | . . . . . . . Field Lobotomies 1 | . . . . . 1 . Intel | -11 -10 -9 -9 -9 -8 -8 ------- Run | Yrd Mat Mat Min Exi Min Mat Robot Analysis Total 4 | . 1 2 . . 1 . Derelict Logs Recovered 2 | . . . 2 . . . Drone Launches . | . . . . . . . Drone Recoveries . | . . . . . . . Exploration | -11 -10 -9 -9 -9 -8 -8 ------------- Run | Yrd Mat Mat Min Exi Min Mat Turns Passed 6513 | . 967 2024 991 555 1465 511 Spaces Moved 3238 | 1 431 1030 505 349 726 196 Core 1 | . . . . . . 1 Treads . | . . . . . . . Legs 354 | 1 353 . . . . . Wheels 2883 | . 78 1030 505 349 726 195 Hover . | . . . . . . . Flight . | . . . . . . . Fastest Speed 120 | 120 120 155 150 155 155 150 Average Speed 162 | 120 177 157 163 156 157 179 Slowest Speed 950 | 120 190 170 170 170 170 950 Overloaded Moves . | . . . . . . . Propulsion Burnouts . | . . . . . . . Robots Hopped . | . . . . . . . Cave-ins Triggered . | . . . . . . . Exploration Rate (%) 67 | 3 84 95 97 70 102 18 Regions Visited 6 Branch Regions 3 Pre-discovered Areas 4 | . 2 1 . 1 . . Known Exits Taken 2 | . . 1 . . 1 . Unknown Exits Taken 4 | 1 1 . 1 1 . . Scrap Searched 4 | . . . 2 . 2 . Spaces Dug 32 | . 20 12 . . . . Terrain Destroyed 113 | . 35 35 . . 43 . Melee . | . . . . . . . Projectile . | . . . . . . . AOE 113 | . 35 35 . . 43 . Terrain Rammed . | . . . . . . . Walls Destroyed . | . . . . . . . Machines Disabled . | . . . . . . . Actions | -11 -10 -9 -9 -9 -8 -8 --------- Run | Yrd Mat Mat Min Exi Min Mat Total 4124 | . 544 1295 606 359 1034 286 Wait 451 | . 30 88 45 . 281 7 Move 3232 | . 430 1029 504 348 725 196 Hop . | . . . . . . . Pick Up 83 | . 13 39 10 1 4 16 Fast Attach 19 | . 2 6 2 4 . 5 Attach 41 | . 8 11 9 1 1 11 Detach 5 | . . 3 2 . . . Swap 33 | . 5 15 1 . 8 4 Drop 67 | . 6 35 5 5 5 11 Fire 193 | . 50 69 28 . 10 36 Melee . | . . . . . . . Ram . | . . . . . . . Kick . | . . . . . . . Crush . | . . . . . . . Escape Stasis . | . . . . . . . Rewire . | . . . . . . . Trap . | . . . . . . . Miscellaneous . | . . . . . . . Route ------- -11/Scrapyard -10/Materials (discovered 3 exits: *Mat x2 / Min) -9/Materials (discovered 4 exits: *Mat x3 / *Min) -9/Mines (discovered 3 exits: *Mat x2 / *Exi) -9/Exiles -8/Mines (discovered 2 exits: *Mat x2) -8/Materials History --------- Turn | Location | Event 1 | -11/Scrapyard | Discovered new exit (range 0) 1 | -11/Scrapyard | Entered Materials 143 | -10/Materials | Central database locked down 210 | -10/Materials | Identified exit to Mines 320 | -10/Materials | Build established: Mutant 363 | -10/Materials | Discovered new exit (range 14) 855 | -10/Materials | Discovered new exit (range 14) 968 | -10/Materials | Entered another Materials area 968 | -9/Materials | Evolved 2 slots: Weapon x2 1113 | -9/Materials | Destroyed 8 combat bots 1272 | -9/Materials | Build established: Gunner 1506 | -9/Materials | Discovered new exit (range 7) 1732 | -9/Materials | Discovered new exit (range 6) 1969 | -9/Materials | Build established: Scavenger-Gunner 1995 | -9/Materials | Discovered new exit (range 11) 2030 | -9/Materials | Identified exit to Materials 2082 | -9/Materials | Identified exit to Mines 2398 | -9/Materials | Discovered exit to Materials (range 5) 2456 | -9/Materials | Build established: Tank 2992 | -9/Materials | Entered Mines 2997 | -9/Mines | Assembled infested the area 2997 | -9/Mines | Learned 2 Materials zone layouts 3108 | -9/Mines | Discovered exit to Materials (range 7) 3113 | -9/Mines | Core integrity fell below 50% 3159 | -9/Mines | Lost 5 parts (1p1n1u2w) 3493 | -9/Mines | Discovered exit to Materials (range 15) 3846 | -9/Mines | Learned Materials terminal intel 3976 | -9/Mines | Deemed a non-threat by the Exiles lab entrance 3976 | -9/Mines | Discovered new exit (range 5) 3983 | -9/Mines | Entered Exiles 3991 | -9/Exiles | Build established: Scavenger-Tank 4028 | -9/Exiles | Met 8R-AWN 4055 | -9/Exiles | Met EX-HEX 4096 | -9/Exiles | Met EX-BIN 4117 | -9/Exiles | Aligned with FarCom system 4118 | -9/Exiles | Given EX-Vault access code 4183 | -9/Exiles | Opened EX-Vault 4192 | -9/Exiles | Found Field Lobotomy Kit 4221 | -9/Exiles | Warned to stay clear of 0b10 Research branches 4272 | -9/Exiles | Learned location of Zion (-6) 4274 | -9/Exiles | Met EX-DEC 4325 | -9/Exiles | Build established: Mutant 4502 | -9/Exiles | Discovered new exit (range 15) 4538 | -9/Exiles | Left Exiles lab with Field Lobotomy Kit 4538 | -9/Exiles | Entered Mines 4541 | -8/Mines | Core integrity fell below 20% 4717 | -8/Mines | Discovered exit to Materials (range 6) 4848 | -8/Mines | Discovered exit to Materials (range 7) 4858 | -8/Mines | Build established: Scavenger-Skirmisher 4966 | -8/Mines | Assimilated H-55 Commando with FLK Orb 6003 | -8/Mines | Entered Materials 6003 | -8/Materials | Accompanied by 1 ally 6003 | -8/Materials | Evolved 2 slots: Utility x2 6005 | -8/Materials | Loaded intel: 12 terminal locations 6309 | -8/Materials | Core integrity fell below 50% 6397 | -8/Materials | Destroyed 10 combat bots 6398 | -8/Materials | Lost 10 parts (2p2n3u3w) 6514 | -8/Materials | Self-destructed Last Messages --------------- 06394_ K-01 Serf collects debris. 06394_ Acquired Arm. Treads. 06397_ K-01 Serf collects debris. 06399_ Acquired Arm. Treads. 06400_ K-01 Serf collects debris. 06406_ Acquired Imp. Heat Sink. 06407_ K-01 Serf collects debris. 06410_ Dropped Cooling System. 06411_ Acquired Cooling System. 06412_ Acquired 35 matter. 06416_ Acquired Rnf. Deuterium Engine. 06429_ Acquired Imp. Ion Engine. 06436_ Acquired 10 matter. 06439_ Acquired Particle Gun. 06455_ Acquired 12 matter. 06463_ Dropped Minigun. 06468_ Acquired Pulse Rifle. 06514_ Connecting with Terminal... >>Alert(Check) Current Alert Level: Low Security Map ----- +----------------------------------------------------+ | | | | | | | | | ??????????????????##############?????????????????? | | ??????????????????# = [[]=#??????###????????? | | ??????????????????# """"" ########T#########? | | ??????????????????# """"%!!!#[=* #? | | ??????????????????# """%* ]%#%=%[ #? | | ??????????????????# == ! !# ###### #? | | ???????????????##########+###### # # ## | | ???????????????# ##!*!= % + * # | | ???????????????# [ = ##!%[##### # # | | ???????????????# [[= [+=%*%#???# #!!] # | | ???????????????# [== ##=* #####+#!! ############ | | ???????????????# ## ## #!] #??????????? | | ???????????????# ! # # ######??????????? | | ???????????########+### # #???????????????? | | ???? + #???????????????? | | ???????????######## ### # #???????????????? | | ??????????????????# #?# # #???????????????? | | ??????????????????# #?### ### #???????????????? | | ??????????????????# #???# #?# #???????????????? | | ??????????????????# #???# #?# #???????????????? | | ??????????????????# #??##/########???????????????? | | ??????????????????# #??# @ #????????????????? | | ??????????????????# #??# T #????????????????? | | ??????????????????? ???# #????????????????? | | ??????????????????? ???# #????????????????? | | ??????????????????? ???##########????????????????? | | ??????????????????? ?????????????????????????????? | | ??????????????????? ?????????????????????????????? | | ??????????????????? ?????????????????????????????? | | ??????????Y???????? ?????????????????????????????? | | ??????????g??????????????????????????????????????? | | ?????????????????????????????????????????????????? | | ?????????????????????????????????????????????????? | | ?????????????????????????????????????????????????? | | ?????????????????????????????????????????????????? | | ?????????????????????????????????????????????????? | | ?????????????????????????????????????????????????? | | ?????????????????????????????????????????????????? | | ????????????????????????????w????????????????????? | | ?????????????????????????????????????????????????? | | ?????????????????????????????????????????????????? | | ??????????????????????????????????????????T??????? | | ?????????????????????????????????????????????????? | | ?????????????????????????????????????????????????? | | ?????????????????????????????????????????""??????? | | ?????????????????????????????????????????"T??????? | +----------------------------------------------------+ Best States ------------- Heat Dissipation 53 Energy Generation 14 Energy Capacity 280 Matter Stores 300 Matter Capacity 300 Sight Range 16 Terrain Scan Density 10 Base Temperature (-) 100 Armor Coverage 375 Core Shielding 20 Evasion (%) 50 Targeting Accuracy 6 Recoil Reduction 1 Item Schematics ----------------- Arm. Wheel | -9/Materials | Scanalyzed Plasma Cutter | -9/Materials | Scanalyzed Imp. Heat Sink | -9/Materials | Scanalyzed Rocket Launcher | -9/Materials | Scanalyzed Robot Schematics ------------------ None Fabricated ------------ Nothing Alien Tech Used ----------------- None Achievements -------------- None Challenges ------------ None Game ------ Seed ScrapoidGreatSlayer Manual? 0 Play Time 01:14:03 Cumulative 85.3 hours Start 2024.09.10 @ 12:04:31 End 2024.09.10 @ 15:26:48 Sessions 1 Manual Loads 0 Difficulty Rogue Special Mode None Game No. 51 Rogue 51 Adventurer 0 Explorer 0 Win Type - Total 0 Types 0/0/0/0/0/0/0/0/0 Lore% 32 Gallery% 29 Achievement% 33 Wizard Run 0 Options --------- Layout 0 ASCII 0 Keyboard 0 Movement Mouse Keybinds 0 Fullscreen 1 Font 16/SmallcapsGlow Map View 37x27 Zoom Use 88% Tactical HUD 1 Map Filters NONE Filters NONE Steam 1 RUN: 9b4daaff-e55d-4912-8b13-22a1987df8ab